Cogmind - Beta 16.1 @@@ ROGUE MODE // 2026.04.24 @ 18:54:01 Player: beans Result: Smashed by cave-in Performance ------------- Evolutions (0) 0 Regions Visited (3) 600 Robots Destroyed (9) 45 Value Destroyed (240) 240 Prototype IDs (13) 260 Alien Tech Used (0) 0 Bonus (-11) -11 TOTAL SCORE: 1134 Bonus ------- Friendly Fire -11 Cogmind --------- Core Integrity 0/250 Matter 231/300 Energy 100/100 System Corruption 9% Temperature Cool (0) Movement Core (50) Location -10/Subcaves Parts ------- > --- POWER (1) -------- (None) > --- PROPULSION (2) --- (None) > --- UTILITY (2) ------ (None) > --- WEAPON (2) ------- Ripper > --- INVENTORY (5) ---- 1B-0RG's Assimilator Peak State ------------ > --- POWER ------------ Ion Engine > --- PROPULSION ------- Aluminum Leg Aluminum Leg > --- UTILITY ---------- Light Humpback > --- WEAPON ----------- Subdweller Shrapnel Launcher Ripper > --- INVENTORY -------- Gun Armor Subdweller Machine Gun Subdweller Machine Gun Battle Cannon 1B-0RG's Assimilator [Rating: 19] Favorites ----------- Power Ion Engine Engine Ion Engine Propulsion Aluminum Leg Leg Aluminum Leg Utility Light Humpback Storage Light Humpback Protection Makeshift Kinetic Plating Weapon Subdweller Shrapnel Launcher Ballistic Gun Subdweller Machine Gun Launcher Subdweller Shrapnel Launcher Slashing Weapon Ripper Build | -11 -10 -10 -10 ------- Run | Yrd Mat Min Sub Slots Evolved . | . . . . Power . | . . . . Propulsion . | . . . . Utility . | . . . . Weapon . | . . . . Parts Attached 13 | 4 2 . 7 Power 2 | 1 1 . . Engine 2 | 1 1 . . Core . | . . . . Reactor . | . . . . Propulsion 2 | 2 . . . Treads . | . . . . Leg 2 | 2 . . . Wheel . | . . . . Hover . | . . . . Flight . | . . . . Utility 3 | . . . 3 Device . | . . . . Storage 1 | . . . 1 Processor . | . . . . Hackware . | . . . . Protection 2 | . . . 2 Artifact . | . . . . Weapon 6 | 1 1 . 4 Energy Gun . | . . . . Energy Cannon . | . . . . Ballistic Gun 4 | 1 1 . 2 Ballistic Cannon . | . . . . Launcher 1 | . . . 1 Special Weapon . | . . . . Impact Weapon . | . . . . Slashing Weapon 1 | . . . 1 Piercing Weapon . | . . . . Special Melee Weapon . | . . . . Unidentified Prototypes . | . . . . Parts Lost 8 | . . . 8 Power 2 | . . . 2 Propulsion 2 | . . . 2 Utility 1 | . . . 1 Weapon 3 | . . . 3 Highest Loss Streak 4 | . . . 4 To Critical Strikes . | . . . . Average Backups 3 | 1 1 1 3 Power . | . 1 1 . Propulsion . | . . . . Utility . | . . . . Weapon 1 | . . . 2 Tool/Special . | . . . . Unused Backups 3 | . . . 3 Power . | . . . . Propulsion . | . . . . Utility 1 | . . . 1 Weapon 1 | . . . 1 Tool/Special 1 | . . . 1 Average Slot Usage (%) 77 | . 52 71 78 Engine 13 | . 12 14 13 Leg 27 | . 24 28 27 Storage 8 | . . . 8 Protection 3 | . . . 3 Ballistic Gun 9 | . 16 28 8 Launcher 7 | . . . 8 Slashing Weapon 6 | . . . 7 Peak Build Rating 19 | 4 5 5 19 Average Rating 12 | 2 3 5 13 On Entrance 3 | . 4 5 5 Avg Prop Armor Cover (%) . | . . . . Naked Turns 6 | . 6 . . Heaviest Build 57 | 6 8 8 57 Greatest Support 20 | 20 20 20 20 Greatest Overweight (x) 4 | . 2 . 4 Average Overweight (x) 1 | . . . 1 Largest Inventory Capacity 25 | 5 5 5 25 Average Capacity 16 | 5 5 5 17 Most Carried 10 | 4 5 1 10 Average Carried 5 | 1 1 1 5 Final Capacity 5 | 5 5 5 5 Final Carried 5 | 1 1 1 5 Class Distribution -------------------- 100% | Mutant Dominant Class ---------------- Mutant | -10/Materials Mutant | -10/Mines Mutant | -10/Subcaves Resources | -11 -10 -10 -10 ----------- Run | Yrd Mat Min Sub Matter Collected 566 | 216 . . 350 Remotely . | . . . . Salvage Created 138 | . . . 138 Parts 8 | . . . 8 Haulers Intercepted . | . . . . Recyclers Shooed . | . . . . Parts Field Recycled . | . . . . Retrieved Matter . | . . . . Parts Self-Destructed 8 | . . . 8 Prevented . | . . . . Parts Restored . | . . . . Kills | -11 -10 -10 -10 ------- Run | Yrd Mat Min Sub Combat Hostiles Destroyed 9 | . . . 9 Melee 2 | . . . 2 AOE 7 | . . . 7 Classes Destroyed 2 | . . . 2 Swarmer 4 | . . . 4 Subdweller 5 | . . . 5 Best Kill Streak 2 | . . . 2 Combat Bots Only 2 | . . . 2 Max Kills in Single Turn 2 | . . . 2 Gunslinging . | . . . . Exploded 2 | . . . 2 Melee 1 | . . . 1 Uniques/NPCs Destroyed . | . . . . Combat | -11 -10 -10 -10 -------- Run | Yrd Mat Min Sub Hostile Shots Fired 40 | . . . 40 Missed 7 | . . . 7 Hits 33 | . . . 33 Projectile 33 | . . . 33 AOE 1 | . . . 1 Critical Strikes 1 | . . . 1 Damage Taken 1111 | . . . 1111 Core 252 | . . . 252 Absorbed by Shields . | . . . . Ignored by Resistances 17 | . . . 17 Core Remaining (%) 100 | 100 . . . Volleys Fired 22 | . . . 22 Largest 2 | . . . 2 Hottest 50 | . . . 50 Shots Fired 28 | . . . 28 Gun 17 | . . . 17 Cannon . | . . . . Launcher 11 | . . . 11 Special . | . . . . Kinetic 28 | . . . 28 Thermal . | . . . . Explosive . | . . . . Electromagnetic . | . . . . Robot Hit Streak 5 | . . . 5 Robot Miss Streak 2 | . . . 2 Penetration Max . | . . . . Secondary Targets . | . . . . Shots Hit Robots 17 | . . . 17 Core Hits 12 | . . . 12 Critical Kills . | . . . . Critical Parts Destroyed . | . . . . Critical Strikes . | . . . . Melee Attacks 17 | . . . 17 Impact . | . . . . Slashing 17 | . . . 17 Piercing . | . . . . Sneak Attacks . | . . . . Combat Hostiles . | . . . . Follow-up Attacks . | . . . . Damage Inflicted 935 | . . . 935 Guns 157 | . . . 157 Cannons . | . . . . Explosions 575 | . . . 575 Melee 203 | . . . 203 Ramming . | . . . . Kinetic 732 | . . . 732 Thermal . | . . . . Explosive . | . . . . Electromagnetic . | . . . . Impact . | . . . . Slashing 203 | . . . 203 Piercing . | . . . . Highest Corruption . | . . . . Average Corruption . | . . . . Corruption Purged . | . . . . Corruption Blocked . | . . . . Overload Shots . | . . . . Overflow Damage 17 | . . . 17 Projectiles . | . . . . Explosions 17 | . . . 17 Melee . | . . . . Knockbacks . | . . . . Impact . | . . . . Kinetic . | . . . . Secondary . | . . . . Self-Inflicted Damage 86 | . . . 86 Shots 2 | . . . 2 Rammed . | . . . . Targets Rammed . | . . . . Kicked . | . . . . Crushed . | . . . . Highest Temperature . | . . . . Average Temperature . | . . . . Received Heat Transfer . | . . . . Siege Activations . | . . . . Martial Activations . | . . . . Shielding Activations . | . . . . Robots Disrupted . | . . . . Combat Hostiles . | . . . . Robots Corrupted . | . . . . Combat Hostiles . | . . . . Parts Fried . | . . . . Impact Corruptions . | . . . . Robots Melted . | . . . . Combat Hostiles . | . . . . Parts Melted . | . . . . Heat Transferred . | . . . . Parts Sabotaged . | . . . . Parts Stolen . | . . . . Parts Stripped . | . . . . Power Chain Reactions . | . . . . Alert | -11 -10 -10 -10 ------- Run | Yrd Mat Min Sub Maximum Alert Level . | . . . . Low Security (%) 100 | 100 100 100 . Level 1 . | . . . . Level 2 . | . . . . Level 3 . | . . . . Level 4 . | . . . . Level 5 . | . . . . High Security . | . . . . Max Security . | . . . . Peak Influence . | . . . . Initial . | . . . . Average . | . . . . Influence Increases 90 | . . . 90 Destroy 0b10 Robot/C 80 | . . . 80 Destroy Leader 10 | . . . 10 Influence Decreases 84 | . . . 84 Time Decay 24 | . . . 24 Lost Part 60 | . . . 60 Squads Dispatched . | . . . . Investigation . | . . . . Extermination . | . . . . Reinforcement . | . . . . Assault . | . . . . Garrison . | . . . . Intercept . | . . . . Searches Triggered . | . . . . Construction Impeded . | . . . . Haulers Reinforced . | . . . . Active Scanning Responses . | . . . . Cargo Convoy Interrupts . | . . . . Stealth | -11 -10 -10 -10 --------- Run | Yrd Mat Min Sub Distress Signals . | . . . . Communications Jammed . | . . . . Distress Signals . | . . . . Times Spotted 10 | . . . 10 Peak Tracking Total 4 | . . . 4 Tactical Retreats . | . . . . Traps | -11 -10 -10 -10 ------- Run | Yrd Mat Min Sub Traps Triggered 2 | . 2 . . Indirectly . | . . . . Trap Hack Attempts . | . . . . Triggered . | . . . . Disarmed . | . . . . Reprogrammed . | . . . . Reused . | . . . . Traps Extracted . | . . . . Installed . | . . . . Triggered . | . . . . Machines | -11 -10 -10 -10 ---------- Run | Yrd Mat Min Sub Machines Disabled 1 | . . . 1 Max in Single Turn 1 | . . . 1 Machines Repaired . | . . . . Machines Dismantled . | . . . . Machines Sabotaged . | . . . . Overloaded Fab Kills . | . . . . Hacking | -11 -10 -10 -10 --------- Run | Yrd Mat Min Sub Machines Accessed 1 | . . . 1 Terminals . | . . . . Fabricators . | . . . . Repair Stations . | . . . . Recycling Units . | . . . . Scanalyzers . | . . . . Garrison Access . | . . . . Total Hacks 1 | . . . 1 Successful 1 | . . . 1 Failed . | . . . . Catastrophic . | . . . . Database Lockouts . | . . . . Manual . | . . . . Terminals . | . . . . Fabricators . | . . . . Repair Stations . | . . . . Recycling Units . | . . . . Scanalyzers . | . . . . Garrison Access . | . . . . Terminal Hacks 1 | . . . 1 Proto ID Catalog 1 | . . . 1 Fabricator Hacks . | . . . . Repair Station Hacks . | . . . . Recycling Unit Hacks . | . . . . Scanalyzer . | . . . . Garrison Access Hacks . | . . . . Unauthorized Hacks . | . . . . Terminals . | . . . . Fabricators . | . . . . Repair Stations . | . . . . Recycling Units . | . . . . Scanalyzers . | . . . . Garrison Access . | . . . . Data Cores Recovered . | . . . . Used . | . . . . Hacking Detections . | . . . . Full Trace Events . | . . . . Feedback Events . | . . . . Feedback Blocked . | . . . . Robot Schematics Acquired . | . . . . Robots Built . | . . . . Authchips . | . . . . Time . | . . . . Total Robot Build Rating . | . . . . Part Schematics Acquired . | . . . . Parts Built . | . . . . Authchips . | . . . . Time . | . . . . Total Part Build Rating . | . . . . Part Studies Acquired . | . . . . Parts Repaired . | . . . . Time . | . . . . Parts Recycled . | . . . . Recycled Matter . | . . . . Retrieved Matter . | . . . . Retrieved Components . | . . . . Parts Scanalyzed . | . . . . Part Schematics Acquired . | . . . . Parts Damaged . | . . . . Bothacking | -11 -10 -10 -10 ------------ Run | Yrd Mat Min Sub Used RIF Installer . | . . . . Robots Hacked . | . . . . Non-combat . | . . . . Combat . | . . . . Robot Hacks Applied . | . . . . Relay Couplers Released . | . . . . Fabnet Peak Effective % . | . . . . Robots Rewired . | . . . . Allies Hacked . | . . . . Hacks Repelled . | . . . . Allies | -11 -10 -10 -10 -------- Run | Yrd Mat Min Sub Total Allies . | . . . . Largest Group . | . . . . Highest-Rated Group . | . . . . Highest-Rated Ally . | . . . . Total Orders . | . . . . Ally Attacks . | . . . . Total Damage . | . . . . Kills . | . . . . Allies Corrupted . | . . . . Allies Melted . | . . . . Intel | -11 -10 -10 -10 ------- Run | Yrd Mat Min Sub Active Infowar (turns) . | . . . . Robot Analysis Total . | . . . . Derelict Logs Recovered . | . . . . Drone Launches . | . . . . Drone Recoveries . | . . . . Exploration | -11 -10 -10 -10 ------------- Run | Yrd Mat Min Sub Turns Passed 1599 | 44 61 44 1450 Spaces Moved 679 | 37 42 14 586 Core 16 | 12 4 . . Treads . | . . . . Legs 663 | 25 38 14 586 Wheels . | . . . . Hover . | . . . . Flight . | . . . . Fastest Speed 50 | 50 50 120 120 Average Speed 207 | 97 115 120 223 Slowest Speed 400 | 120 150 120 400 Overloaded Moves . | . . . . Propulsion Burnouts . | . . . . Robots Hopped . | . . . . Potential Cave-ins . | . . . . Cave-ins Triggered 1 | . . . 1 Exploration Rate (%) 13 | 3 11 6 33 Regions Visited 3 Branch Regions 2 Pre-discovered Areas . | . . . . Known Exits Taken . | . . . . Unknown Exits Taken 3 | 1 1 1 . Scrap Searched 4 | . . . 4 Spaces Dug 12 | . . . 12 Terrain Destroyed 126 | . . . 126 Melee 1 | . . . 1 Projectile . | . . . . AOE 125 | . . . 125 Terrain Rammed . | . . . . Walls Destroyed . | . . . . Machines Disabled . | . . . . Actions | -11 -10 -10 -10 --------- Run | Yrd Mat Min Sub Total 816 | 45 53 41 677 Wait 49 | . . 28 21 Move 676 | 36 41 13 586 Hop . | . . . . Pick Up 23 | 5 5 . 13 Fast Attach 1 | . 1 . . Attach 17 | 4 5 . 8 Detach 2 | . . . 2 Swap 3 | . 1 . 2 Drop 6 | . . . 6 Fire 22 | . . . 22 Melee 17 | . . . 17 Ram . | . . . . Kick . | . . . . Crush . | . . . . Escape Stasis . | . . . . Rewire . | . . . . Trap . | . . . . Miscellaneous . | . . . . Route ------- -11/Scrapyard -10/Materials -10/Mines -10/Subcaves (discovered 2 exits: [*Mat x2]) History --------- Turn | Location | Event 4 | -11/Scrapyard | Discovered new exit (range 14) 45 | -11/Scrapyard | Entered Materials 83 | -10/Materials | Discovered new exit (range 9) 106 | -10/Materials | Entered Mines 148 | -10/Mines | Discovered new exit (range 3) 150 | -10/Mines | Entered Subcaves 151 | -10/Subcaves | Approached by a straggling Scientist 186 | -10/Subcaves | Disturbed a concealed Subdweller 239 | -10/Subcaves | Shifting Twisted Machinery released Sub. Machine Gun 302 | -10/Subcaves | Shifting Twisted Machinery released Battle Rifle 311 | -10/Subcaves | Build established: Mutant 437 | -10/Subcaves | Shifting Twisted Machinery released Lgt. Humpback 438 | -10/Subcaves | Shifting Twisted Machinery released Mak. Kinetic Plating 476 | -10/Subcaves | Discovered new exit (range 6) 534 | -10/Subcaves | Visited 4L-MR0's lab 789 | -10/Subcaves | Found Prototype Special Melee Weapon 907 | -10/Subcaves | Found Gun Armor 1124 | -10/Subcaves | A swath of the cavern ceiling suddenly collapsed 1456 | -10/Subcaves | Discovered new exit (range 15) 1499 | -10/Subcaves | Core integrity fell below 50% 1600 | -10/Subcaves | Ambushed by Subdweller buried in earth 1601 | -10/Subcaves | Crushed by falling debris 1601 | -10/Subcaves | Smashed by cave-in Last Messages --------------- Destroyed Lgt. Ion Engine. S-10 Pest destroyed. Sub. Machine Gun destroyed. 31-IN8(R) destroyed. Aluminum Leg destroyed. 6Y-3YS(R) destroyed. Acquired 71 matter. Subatomizers dissect the Sub. Optics. S-10 Pest destroyed. Aluminum Leg destroyed. Destroyed Aluminum Leg. E2-F4Y(R): "GOODGOOD!" The unstable cave ceiling collapses. Crushed by falling debris. Sub. Shrapnel Launcher destroyed. System corrupted by crushing effect (+2). Ion Engine destroyed. System corrupted by crushing effect (+2). Lgt. Humpback destroyed. System corrupted by crushing effect (+5). Map ----- +----------------------------------------------------+ | & # ## #??????????????????????????????????? | | "" ###?# #??????????????????????????????????? | | " #???######??????????????????????????????????? | | & "#???????????????????????????????????????????? | | #???????????????????????????????????????????? | | ######???????????????????????????????????????????? | | #????????????????????????????????????????????????? | | #????????????????????????????????????????????????? | | #????????????????????????????????????????????????? | | #????????????????????????????????????????????????? | | #????????????????????????????????????????????????? | | #????????????????????????????????????????????????? | | ?????????????????????????????????????????????????? | | ????????????????????????????????????? ???????????? | | ???????????????????????????????????%[ ???????????? | | ??????????????????????????????????;s% #??????????? | | ????????????####????????????????? #??????????? | | ????????????#;;#####???????????? #??????????? | | ??###########; ;; #######?????; ]%* #??????????? | | ??# # # ## ;; # ###### ##?????????? | | ### ; ; ; ?????????? | | ! < % ?????????? | | ####% ! ?????????????? | | ## #?#### ;#???????????????????? | | ######???# ;;#???????????????????? | | ???????## #% ; ]@ #???????????????????? | | ???????# R ;;#???????????????????? | | ???????### % ;; #???????????????????? | | ?????????## # ??????????????????? | | ??????????## ;;### ##?????????????????? | | ???????????# ;;; #??? #??????????????????? | | ?????????? " ;;# ##??? ##??????????????????? | | ???????? "######?????"???????????????????? | | ??????""""" ""?????????? "??????????????????? | | ?????"""## "#?????????? ??????????????????? | | ??????"##" "# ###?????????? ??????????????????? | | ?????????##"""##"#?????????????#?????????????????? | | ??????????#"""?###???????????????????????????????? | | ????????????? ???????????????????????????????????? | | ?????????????????????????????????????????????????? | | ?????????????????????????????????????????????????? | | ?????????????????????????????????????????????????? | | ?????????????????????????????????????????????????? | | ?????????????????????????????????????????????????? | | ?????????????????????????????????????????????????? | | ?????????????????????????????????????????????????? | | ?????????????????????????????????????????????????? | | ?????????????????????????????????????????????????? | | ?????????????????????????????????????????????????? | | ?????????????????????????????????????????????????? | +----------------------------------------------------+ Best States ------------- Heat Dissipation 25 Energy Generation 10 Energy Capacity 250 Matter Stores 300 Matter Capacity 300 Sight Range 16 Terrain Scan Density 10 Armor Coverage 100 Resistance: KI 10 Evasion (%) 55 Item Schematics ----------------- None Robot Schematics ------------------ None Fabricated ------------ Nothing Repaired ---------- Nothing Studied --------- None Alien Tech Used ----------------- None Achievements -------------- None Challenges ------------ None Game ------ Seed SmartTerrainCompanion Manual? 0 Play Time 00:11:29 Cumulative 275.6 hours Start 2026.04.24 @ 18:47:48 End 2026.04.24 @ 18:54:01 Sessions 1 Manual Loads 0 Difficulty Rogue Special Mode None Game No. 729 Rogue 727 Adventurer 2 Explorer 0 Win Type - Total 0 Types 0/0/0/0/0/0/0/0/0/0 Lore% 68 Gallery% 64 Achievement% 45 Wizard Run 0 Options --------- Layout 2 ASCII 0 Keyboard 0 Movement Mouse Keybinds 0 Fullscreen 1 Font 24/Smallcaps Map View 50x44 Zoom Use 0% Tactical HUD 0 Map Filters NONE Filters NONE Steam 1 RUN: 64ff5811-ebcf-4494-bb24-b70582e2666c